bitfinex/quotes_SOLUSD_20251009
["timestamp","ask_amount","ask_price","bid_price","bid_amount"]
[1760000528982,214.2,220.58,220.57,0.67]
[1760000529288,4.42166787,220.62,220.56,32.66]
[1760000529493,8.95443725,220.62,220.56,32.66]
[1760000529790,4.42166787,220.62,220.56,32.66]
[1760000529996,4.42166787,220.62,220.57,20.66999999]
[1760000530197,0.09682004,220.65,220.57,20.66999999]
[1760000530198,0.09682004,220.65,220.57,25.09166786]
[1760000530377,4.62891063,220.65,220.61,19.99999999]
[1760000530699,0.09682004,220.65,220.62,37.86265869]
[1760000530876,0.09682004,220.65,220.64,19.99999999]
[1760000531500,0.09682004,220.65,220.64,20.66999999]
[1760000532587,0.09682004,220.65,220.64,25.20226975]
[1760000532790,0.09682004,220.65,220.64,20.66999999]
[1760000533078,0.09682004,220.65,220.64,25.09166786]
[1760000533278,0.09682004,220.65,220.64,29.62393762]
[1760000533506,0.09682004,220.65,220.64,40.50041283]
[1760000534088,0.09682004,220.65,220.64,20.66999999]
[1760000534400,0.09682004,220.65,220.64,53.32999999]
[1760000534804,5.31888439,220.65,220.62,19.99999999]
[1760000535106,4.42166787,220.64,220.63,32.66]
[1760000535306,4.42166787,220.64,220.6,19.99999999]
[1760000535494,4.62888439,220.65,220.61,32.66]
[1760000535691,0.09682004,220.65,220.62,33.33]
[1760000535894,134.89682004,220.65,220.64,19.99999999]
[1760000536105,134.89682004,220.65,220.64,20.66999999]
[1760000536506,134.89682004,220.65,220.64,25.09166786]
[1760000537216,134.89682004,220.65,220.64,29.62393762]
[1760000537519,134.89682004,220.65,220.64,62.28393762]
[1760000539725,134.9799864,220.65,220.64,62.28393762]
[1760000539896,134.88316636,220.65,220.64,62.28393762]
[1760000540704,134.88316636,220.65,220.64,53.32999999]
[1760000540919,134.88316636,220.65,220.64,62.28393762]
[1760000541234,0.08316636,220.65,220.64,62.26393762]
[1760000541796,0.08316636,220.65,220.64,19.99999999]
[1760000542112,9.72689858,220.65,220.62,19.99999999]
[1760000542300,4.42166787,220.63,220.56,19.99999999]
[1760000542499,4.42166787,220.61,220.57,32.64]
[1760000542696,15.94539159,220.65,220.58,32.64]
[1760000542697,0.69,220.6,220.58,32.64]
[1760000542923,5.11166787,220.59,220.56,19.99999999]
[1760000543125,0.69,220.63,220.57,49.28999999]
[1760000543331,0.69,220.63,220.57,53.04166786]
[1760000543501,0.08316636,220.65,220.6,4.42166787]
[1760000543705,0.08316636,220.65,220.64,24.42166786]
[1760000543904,0.08316636,220.65,220.64,57.06166786]
[1760000544101,0.08316636,220.65,220.64,57.73166786]
[1760000544414,0.08316636,220.65,220.64,62.26393762]
[1760000545898,0.08316636,220.65,220.64,25.20226975]
[1760000546114,0.08316636,220.65,220.64,29.6184553]
[1760000546715,0.08316636,220.65,220.64,73.13493051]
[1760000547019,0.08292551,220.66,220.65,10.87647521]
[1760000547204,0.08663295,220.7,220.67,10.87647521]
[1760000547512,0.09832113,220.74,220.7,30.8764752]
[1760000547694,0.09832113,220.74,220.7,70.09175959]
[1760000548112,0.09832113,220.74,220.7,70.80175959]
[1760000548511,0.09832113,220.74,220.7,75.33279719]
[1760000550015,1e-08,220.73,220.72,51.6764752]
[1760000550319,0.66,220.86,220.8,20.8]
[1760000550524,0.66,220.86,220.85,19.99999999]
[1760000550711,4.52693526,220.9,220.85,52.63999999]
[1760000551024,0.66,220.89,220.85,59.21528438]
[1760000551218,0.66,220.88,220.86,32.64]
[1760000551423,0.66,220.87,220.86,32.64]
[1760000552018,5.18755014,220.87,220.86,32.64]
[1760000552322,0.66,220.87,220.86,32.64]
[1760000552716,6.57528439,220.9,220.86,32.64]
[1760000553311,6.57528439,220.94,220.86,39.92528439]
[1760000553527,6.57528439,220.93,220.87,19.99999999]
[1760000553825,4.52673034,220.91,220.88,32.62]
[1760000554000,11.10201473,220.91,220.88,32.62]
[1760000554200,22.41884058,220.91,220.88,32.62]
[1760000554512,11.10179901,220.93,220.88,32.62]
[1760000554709,4.52651462,220.93,220.89,19.99999999]
[1760000554909,0.66,220.97,220.91,19.99999999]
[1760000555107,0.66,220.97,220.92,32.62]
[1760000555308,7.23528439,220.96,220.92,32.62]
[1760000555511,0.66,220.95,220.92,32.62]
[1760000555702,0.66,220.94,220.92,32.62]
[1760000555912,4.52632055,220.93,220.92,32.62]
[1760000556519,5.18632055,220.93,220.91,19.99999999]
[1760000556699,4.52632055,220.93,220.92,32.62]
[1760000557925,13.71295923,221.07,220.92,32.62]
[1760000557926,6.57528439,220.98,220.93,40.79999999]
[1760000558119,0.66,220.98,220.94,32.62]
[1760000558304,6.57528439,221.01,220.96,19.99999999]
[1760000558503,20.8,221.05,220.96,52.65999999]
[1760000558504,6.57528439,221.02,220.96,52.65999999]
[1760000558705,7.23528439,221.01,220.96,52.65999999]
[1760000558900,0.66,221.0,220.96,52.65999999]
[1760000559220,4.52406804,221.04,220.96,59.23528438]
[1760000559402,0.66,221.03,220.98,19.99999999]
[1760000559605,0.66,221.03,220.98,52.67999999]
[1760000559806,0.66,221.02,220.98,52.67999999]
[1760000560128,4.52406804,221.04,221.0,19.99999999]
[1760000560331,4.52379105,221.06,221.02,19.99999999]
[1760000560622,4.52379105,221.06,221.03,32.72]
[1760000560811,5.18379105,221.06,221.03,32.72]
[1760000561330,0.66,221.06,221.03,32.72]
[1760000561728,2790.8809512,221.1,221.03,32.72]
[1760000561907,5.18304491,221.09,221.03,32.72]
[1760000562107,6.57528439,221.07,221.03,32.72]
[1760000562307,7.23528439,221.07,221.03,32.72]
[1760000562503,0.66,221.06,221.03,32.72]
[1760000563126,7.23528439,221.08,221.04,19.99999999]
[1760000563333,5.1834541,221.07,221.04,19.99999999]
[1760000563828,4.5234541,221.07,221.04,19.99999999]
[1760000564130,2790.8809512,221.1,221.06,19.99999999]
[1760000564327,2791.5509512,221.1,221.07,32.66]
[1760000564529,2795.40389145,221.1,221.07,32.66]
[1760000564933,2806.7109923,221.1,221.07,32.66]
[1760000565232,7.24528439,221.09,221.07,32.66]
[1760000565414,11.76853389,221.08,221.07,32.66]
[1760000565615,4.5232495,221.08,221.06,52.65999999]
[1760000566719,2795.40389376,221.1,221.06,52.65999999]
[1760000566913,2806.71099461,221.1,221.06,52.65999999]
[1760000567239,0.67,221.09,221.06,32.66]
[1760000567418,4.5234541,221.07,221.06,32.66]
[1760000568331,4.5234541,221.07,221.06,52.65999999]
[1760000568735,4.52320834,221.09,221.06,52.65999999]
[1760000570217,0.67,221.08,221.06,52.65999999]
[1760000570424,0.67,221.08,221.04,19.99999999]
[1760000570425,0.67,221.07,221.04,19.99999999]
[1760000570619,15.83082062,221.09,221.04,19.99999999]
[1760000571135,23.07610501,221.09,221.06,19.99999999]
[1760000571330,15.83082062,221.09,221.06,19.99999999]
[1760000571638,4.52320834,221.09,221.07,33.34]
[1760000571819,2795.40397937,221.1,221.08,0.72]
[1760000572021,2790.8809512,221.1,221.09,32.62]
[1760000572714,2795.40379154,221.1,221.09,32.62]
[1760000572919,2801.97907593,221.1,221.09,32.62]
[1760000573122,2813.95617678,221.1,221.07,32.7]
[1760000573325,4.5234541,221.07,221.06,32.7]
[1760000573530,11.09873849,221.07,221.06,32.7]
[1760000573730,4.5234541,221.07,221.06,32.7]
[1760000574935,4.5234541,221.07,220.98,4.52528271]
[1760000574936,11.76873849,221.07,220.99,19.99999999]
[1760000575135,0.67,221.06,221.0,32.7]
[1760000575326,4.52427272,221.03,221.0,19.99999999]
[1760000575836,4.5232495,221.08,221.01,33.4]
[1760000576035,6.57528439,221.06,221.01,33.4]
[1760000576245,6.57528439,221.05,221.01,32.7]
[1760000576421,6.57528439,221.06,221.02,0.7]
[1760000576618,15.83174515,221.08,221.03,32.7]
[1760000576838,4.5232495,221.08,221.04,20.69999999]
[1760000577028,11.09853389,221.08,221.05,32.7]
[1760000577227,22.40665764,221.08,221.05,32.7]
[1760000577440,4.5232495,221.08,221.06,0.7]
[1760000577738,4.52304491,221.09,221.07,0.7]
[1760000577928,4.52304491,221.09,221.07,32.7]
[1760000578246,11.0983293,221.09,221.07,32.7]
[1760000578424,4.52304491,221.09,221.07,32.7]
[1760000579244,2790.8809512,221.1,221.07,32.7]
[1760000579424,4.52304491,221.09,221.07,32.7]
[1760000579830,4.52304491,221.09,221.06,52.67999999]
[1760000580137,6.57528439,221.08,221.06,52.67999999]
[1760000580346,2797.45623559,221.1,221.06,52.67999999]
[1760000580644,2813.28626892,221.1,221.06,52.67999999]
[1760000580845,6.57528439,221.07,221.04,52.67999999]
[1760000581019,6.57528439,221.06,221.04,32.68]
[1760000581222,0.7,221.09,221.04,32.68]
[1760000581421,6.57528439,221.05,221.04,32.68]
[1760000581626,11.09914776,221.05,221.02,52.67999999]
[1760000581831,6.57528439,221.03,220.97,32.7]
[1760000582028,6.57528439,220.99,220.97,32.7]
[1760000582227,6.57528439,220.98,220.97,32.7]
[1760000583030,44.27647521,221.04,220.95,53.39999999]
[1760000583220,6.57528439,220.97,220.95,32.7]
[1760000583423,0.7,220.96,220.92,19.99999999]
[1760000583635,6.57528439,220.93,220.9,32.68]
[1760000583847,6.57528439,220.91,220.88,32.72]
[1760000584030,0.7,220.93,220.88,32.72]
[1760000584031,6.57528439,220.89,220.88,32.72]
[1760000584735,7.27528439,220.89,220.81,19.99999999]
[1760000584940,6.57528439,220.83,220.82,32.72]
[1760000585121,0.7,220.89,220.82,32.72]
[1760000585440,4.5252964,220.98,220.93,19.99999999]
[1760000585641,11.10037602,220.99,220.95,19.99999999]
[1760000585963,4.52447742,221.02,220.96,33.48]
[1760000586241,11.31117463,221.03,220.96,33.48]
[1760000586242,4.52437223,221.03,220.98,19.99999999]
[1760000586452,11.30766661,221.09,221.01,19.99999999]
[1760000586636,11.30766661,221.09,221.02,33.5]
[1760000586828,17.882951,221.09,221.03,19.99999999]
[1760000587142,4.5232495,221.08,221.03,19.99999999]
[1760000587335,17.882951,221.09,221.03,20.69999999]
[1760000587336,15.83071152,221.09,221.03,20.69999999]
[1760000587537,6.57528439,221.08,221.03,20.69999999]
[1760000587928,6.57528439,221.05,221.03,19.99999999]
[1760000588225,6.57528439,221.05,221.02,32.8]
[1760000588436,6.57528439,221.08,221.04,19.99999999]
[1760000589242,6.57528439,221.08,221.05,32.8]
[1760000589441,4.5234541,221.07,221.05,32.76136652]
[1760000590257,11.09873849,221.07,221.05,32.76136652]
[1760000590453,6.57528439,221.06,221.05,32.76136652]
[1760000590616,7.27528439,221.06,221.01,52.75999999]
[1760000590820,6.57528439,221.04,221.01,52.75999999]
[1760000591045,6.57528439,221.02,220.99,19.99999999]
[1760000591246,48.61208937,221.07,220.99,52.77999999]
[1760000591438,11.0983293,221.09,221.02,6.57528439]
[1760000591740,11.0983293,221.09,221.05,19.99999999]
[1760000591741,6.57528439,221.07,221.05,19.99999999]
[1760000591932,0.7,221.07,221.03,52.79999999]
[1760000592246,6.57528439,221.05,221.03,52.79999999]
[1760000592633,214.2,221.06,221.03,53.49999999]
[1760000592843,220.77528439,221.06,221.03,52.79999999]
[1760000593142,214.2,221.06,221.04,0.7]
[1760000593326,214.2,221.06,221.05,19.99999999]
[1760000593528,83.92365873,221.06,221.05,19.99999999]
[1760000594268,2790.8809512,221.1,221.05,19.99999999]
[1760000594428,2790.8809512,221.1,221.07,19.99999999]
[1760000594627,2795.40379496,221.1,221.07,19.99999999]
[1760000595028,2790.8809512,221.1,221.07,19.99999999]
[1760000595356,2795.40384638,221.1,221.07,19.99999999]
[1760000595849,2801.97913077,221.1,221.07,19.99999999]
[1760000596162,2813.28623162,221.1,221.07,19.99999999]
[1760000596446,6.57528439,221.08,221.07,19.99999999]
[1760000596753,7.27528439,221.08,221.05,19.99999999]
[1760000596941,7.27528439,221.08,221.03,22.98]
[1760000596942,6.57528439,221.08,221.03,22.98]
[1760000597140,6.57528439,221.08,221.04,19.99999999]
[1760000597328,6.57528439,221.09,221.04,19.99999999]
[1760000597735,6.57528439,221.08,221.04,19.99999999]
[1760000597955,22.40737376,221.07,221.04,19.99999999]
[1760000598153,4.5234541,221.07,221.04,19.99999999]
[1760000598329,4.5234541,221.07,221.05,0.7]
[1760000598535,4.5234541,221.07,221.06,32.78]
[1760000599161,2790.8809512,221.1,221.06,53.47999999]
[1760000599323,4.52304754,221.09,221.06,53.47999999]
[1760000600450,2790.8809512,221.1,221.06,53.47999999]
[1760000600631,2790.8809512,221.1,221.08,19.99999999]
[1760000600839,2795.40379154,221.1,221.09,33.46]
[1760000601349,2790.8809512,221.1,221.09,33.46]
[1760000601526,2795.40379154,221.1,221.09,32.76]
[1760000601733,2795.40379154,221.1,221.09,33.46]
[1760000601934,2790.8809512,221.1,221.09,33.46]
[1760000603062,2795.40379154,221.1,221.09,33.46]
[1760000603245,2790.8809512,221.1,221.09,44.5583293]
[1760000603441,2790.8809512,221.1,221.09,40.03528439]
[1760000603830,2790.8809512,221.1,221.09,33.46]
[1760000605848,2790.8809512,221.1,221.09,32.76]
[1760000606257,2795.40379154,221.1,221.09,32.76]
[1760000607261,2790.8809512,221.1,221.09,40.00528439]
[1760000607841,2790.8809512,221.1,221.09,33.43]
[1760000608541,2790.8809512,221.1,221.09,37.82965078]
[1760000608945,2790.8809512,221.1,221.09,33.43]
[1760000609146,2790.8809512,221.1,221.09,37.82965078]
[1760000609889,2790.8809512,221.1,221.09,32.76]
[1760000610087,2790.8809512,221.1,221.09,33.43]
[1760000610294,2790.8809512,221.1,221.09,37.82965078]
[1760000610506,2790.8809512,221.1,221.09,48.70612599]
[1760000610787,2790.8809512,221.1,221.09,53.2291709]
[1760000612089,2790.8809512,221.1,221.09,69.62952012]
[1760000613470,2790.8809512,221.1,221.09,48.82952012]
[1760000615881,2790.8809512,221.1,221.09,20.4691709]
[1760000616072,2790.8809512,221.1,221.09,53.1091709]
[1760000616898,2790.8809512,221.1,221.08,19.99999999]
[1760000617085,0.71,221.09,221.08,19.99999999]
[1760000617277,5.23304491,221.09,221.08,19.99999999]
[1760000617486,5.23304491,221.09,221.08,52.65999999]
[1760000617695,5.23304491,221.09,221.06,19.99999999]
[1760000617901,4.39965078,221.07,221.06,19.99999999]
[1760000618107,5.10965078,221.07,221.03,19.99999999]
[1760000618280,4.39965078,221.04,221.03,32.68]
[1760000618475,5.10965078,221.04,221.03,32.68]
[1760000619193,9.63371882,221.04,221.03,32.68]
[1760000620909,20.94388892,221.04,221.02,32.66]
[1760000621078,5.10965078,221.03,221.02,32.66]
[1760000621282,9.6339235,221.03,221.02,32.66]
[1760000622223,5.10965078,221.03,221.02,32.66]
[1760000622514,2790.8809512,221.1,220.99,19.99999999]
[1760000622682,5.23304491,221.09,221.04,19.99999999]
[1760000622880,4.39965078,221.05,221.04,52.65999999]
[1760000623303,2790.8809512,221.1,221.04,52.65999999]
[1760000623509,4.39965078,221.08,221.06,19.99999999]
[1760000623701,4.39965078,221.08,221.07,32.7]
[1760000624004,4.39965078,221.08,221.07,33.37]
[1760000624221,2790.8809512,221.1,221.07,33.37]
[1760000624518,2790.8809512,221.1,221.09,19.99999999]
[1760000624699,2790.8809512,221.1,221.09,52.67999999]
[1760000624885,2795.40379154,221.1,221.09,52.67999999]
[1760000625598,2800.52344232,221.1,221.09,19.99999999]
[1760000625912,2796.00060198,221.1,221.09,32.68]
[1760000626111,2800.52344232,221.1,221.09,32.68]
[1760000626813,2800.52344232,221.1,221.06,32.68]
[1760000626986,4.39965078,221.08,221.06,32.68]
[1760000627194,0.72,221.07,221.06,32.68]
[1760000627724,5.2434541,221.07,221.06,32.68]
[1760000628532,5.2434541,221.07,221.04,52.67999999]
[1760000628714,4.39965078,221.05,221.02,19.99999999]
[1760000628923,4.39965078,221.03,221.02,19.99999999]
[1760000629089,4.39965078,221.03,221.02,52.65999999]
[1760000630207,8.9239235,221.03,221.02,52.65999999]
[1760000630589,4.39965078,221.03,221.02,52.65999999]
[1760000630996,4.39965078,221.03,220.94,35.28]
[1760000630997,9.6439235,221.03,221.0,19.99999999]
[1760000631302,4.39965078,221.01,220.98,32.62]
[1760000631496,15.83495452,221.03,220.97,32.62]
[1760000631497,4.39965078,220.99,220.97,32.62]
[1760000631692,5.11965078,220.98,220.95,19.99999999]
[1760000631995,4.39965078,220.96,220.95,32.66]
[1760000632188,8.92535679,220.96,220.95,32.66]
[1760000633132,20.95962181,220.96,220.92,32.66]
[1760000633331,20.95962181,220.96,220.82,4.62856757]
[1760000633332,4.39965078,220.94,220.87,19.99999999]
[1760000633493,0.72,220.93,220.88,32.66]
[1760000633694,4.39965078,220.89,220.88,52.65999999]
[1760000633900,4.39965078,220.89,220.88,32.66]
[1760000634205,9.64679098,220.89,220.88,32.66]
[1760000634527,8.92679098,220.89,220.88,32.66]
[1760000634914,4.52681844,220.91,220.88,32.66]
[1760000635116,4.52681844,220.91,220.82,0.1]
[1760000635117,4.39965078,220.89,220.84,19.99999999]
[1760000635299,4.39965078,220.86,220.84,53.37999999]
[1760000635992,4.39965078,220.86,220.84,52.65999999]
[1760000636399,4.39965078,220.87,220.86,19.99999999]
[1760000636601,4.39965078,220.87,220.86,53.37999999]
[1760000636893,4.39965078,220.87,220.86,52.65999999]
[1760000637301,15.84357244,220.91,220.86,52.65999999]
[1760000637501,4.39965078,220.87,220.86,32.66]
[1760000638393,8.92720092,220.87,220.86,32.66]
[1760000640402,4.5271402,220.89,220.86,32.66]
[1760000640605,15.84140489,220.94,220.88,19.99999999]
[1760000640931,15.84140489,220.94,220.87,0.72]
[1760000640932,4.39965078,220.93,220.9,19.99999999]
[1760000641097,0.71,220.98,220.92,19.99999999]
[1760000641098,4.39965078,220.94,220.92,19.99999999]
[1760000641297,4.39965078,220.94,220.92,52.65999999]
[1760000641718,4.39965078,220.95,220.93,0.72]
[1760000641920,4.39965078,220.95,220.94,52.65999999]
[1760000642120,5.10965078,220.95,220.91,32.68]
[1760000642306,20.75146079,221.02,220.91,32.68]
[1760000642307,8.92617621,220.92,220.91,32.68]
[1760000642505,9.63617621,220.92,220.91,32.68]
[1760000642797,20.9524898,220.92,220.88,19.99999999]
[1760000643102,4.39965078,220.89,220.88,32.68]
[1760000643298,5.10965078,220.89,220.84,19.99999999]
[1760000643546,4.39965078,220.85,220.84,52.67999999]
[1760000643696,4.39965078,220.87,220.85,0.72]
[1760000644022,4.39965078,220.88,220.86,52.69999999]
[1760000644493,4.52755014,220.87,220.86,52.69999999]
[1760000646422,4.52673034,220.91,220.86,53.41999999]
[1760000646604,4.52570601,220.96,220.89,19.99999999]
[1760000646806,8.92535679,220.96,220.92,19.99999999]
[1760000647007,8.92535679,220.96,220.93,33.46]
[1760000647316,8.92535679,220.96,220.94,19.99999999]
[1760000647515,8.92535679,220.96,220.95,32.74]
[1760000647819,20.94962181,220.96,220.9,19.99999999]
[1760000648128,20.94962181,220.96,220.85,0.72]
[1760000648129,4.39965078,220.91,220.89,32.76]
[1760000648311,0.71,220.95,220.89,32.76]
[1760000648312,4.39965078,220.9,220.89,32.76]
[1760000648514,8.92658604,220.9,220.89,32.76]
[1760000648936,9.63658604,220.9,220.89,32.76]
[1760000649941,9.63658604,220.9,220.82,0.1]
[1760000649942,20.9539242,220.9,220.82,0.1]
[1760000650233,4.52509163,220.99,220.87,19.99999999]
[1760000650425,8.92616059,220.93,220.88,19.86]
[1760000650631,12.02397405,220.97,220.89,20.71999999]
[1760000650829,4.39965078,220.94,220.89,20.71999999]
[1760000651131,4.39965078,220.94,220.9,0.72]
[1760000651341,4.52570601,220.96,220.92,19.99999999]
[1760000651631,4.52570601,220.96,220.94,19.99999999]
[1760000651839,8.92535679,220.96,220.94,52.83999999]
[1760000652834,8.92535679,220.96,220.94,32.84]
[1760000653016,0.71,220.95,220.91,32.84]
[1760000653217,4.39965078,220.93,220.9,19.99999999]
[1760000653418,4.39965078,220.92,220.91,32.84]
[1760000654134,4.39965078,220.93,220.91,32.84]
[1760000654342,4.52652543,220.92,220.91,32.84]
[1760000655631,8.92617621,220.92,220.91,32.84]
[1760000656029,8.92599308,220.93,220.91,32.84]
[1760000656222,214.2,220.92,220.91,32.84]
[1760000656413,218.72652543,220.92,220.91,32.84]
[1760000656612,79.4,220.92,220.91,33.56]
[1760000656828,83.92652543,220.92,220.91,32.84]
[1760000657348,8.92617621,220.92,220.9,19.99999999]
[1760000657646,8.92617621,220.92,220.89,32.8]
[1760000657647,20.2424898,220.92,220.89,32.8]
[1760000657819,4.39965078,220.9,220.88,19.99999999]
[1760000658022,0.71,220.89,220.85,19.99999999]
[1760000658320,4.39965078,220.86,220.85,52.83999999]
[1760000658549,8.92740591,220.86,220.85,52.83999999]
[1760000659113,4.39965078,220.86,220.85,52.83999999]
[1760000659621,8.92740591,220.86,220.85,52.83999999]
[1760000660037,0.71,220.97,220.85,53.55999999]
[1760000660242,4.39965078,220.95,220.91,19.99999999]
[1760000660449,4.52611568,220.94,220.93,19.99999999]
[1760000660651,4.52611568,220.94,220.93,52.83999999]
[1760000661441,4.52488687,221.0,220.93,33.56]
[1760000661644,15.83710406,221.0,220.96,19.99999999]
[1760000661823,15.83710406,221.0,220.97,32.84]
[1760000662223,16.54710406,221.0,220.97,32.84]
[1760000662722,4.39965078,220.98,220.97,32.84]
[1760000663240,4.39965078,220.98,220.95,32.84]
[1760000663417,4.39965078,220.96,220.95,32.84]
[1760000664745,4.39965078,220.96,220.9,19.99999999]
[1760000664746,15.84068792,220.95,220.9,19.99999999]
[1760000665048,4.39965078,220.91,220.88,19.99999999]
[1760000665341,15.84068792,220.95,220.88,19.99999999]
[1760000665342,15.84068792,220.95,220.9,19.99999999]
[1760000665548,16.49068792,220.95,220.9,19.99999999]
[1760000666146,20.8,220.99,220.9,19.99999999]
[1760000666147,22.62868582,220.96,220.9,19.99999999]
[1760000666349,4.39965078,220.91,220.86,52.81999999]
[1760000666648,4.39965078,220.87,220.86,52.81999999]
[1760000667022,4.39965078,220.91,220.88,19.99999999]
[1760000667239,4.39965078,220.91,220.89,33.5]
[1760000667852,21.45,220.93,220.89,32.82]
[1760000668021,4.39965078,220.9,220.89,32.82]
[1760000668220,8.92658604,220.9,220.89,32.82]
[1760000668532,4.52693526,220.9,220.89,32.82]
[1760000668724,8.92658604,220.9,220.89,32.82]
[1760000669348,20.8,220.98,220.89,32.82]
[1760000669349,4.39965078,220.91,220.89,33.5]
[1760000669525,4.39965078,220.94,220.92,19.99999999]
[1760000669725,4.39965078,220.94,220.93,32.84]
[1760000669944,4.40775758,220.94,220.93,32.84]
[1760000670447,4.40775758,220.98,220.93,33.52]
[1760000670627,15.72031843,221.0,220.95,19.99999999]
[1760000670943,15.72031843,221.0,220.96,33.52]
[1760000671134,6.56318827,220.97,220.96,32.84]
[1760000672022,6.56318827,220.97,220.95,19.99999999]
[1760000672239,0.65,220.96,220.93,32.84]
[1760000672448,6.56318827,220.94,220.93,32.84]
[1760000673047,4.52591083,220.95,220.93,53.51999999]
[1760000673248,4.52591083,220.95,220.94,0.68]
[1760000673625,4.52591083,220.95,220.93,19.99999999]
[1760000673626,11.0890991,220.95,220.93,19.99999999]
[1760000673825,11.0890991,220.95,220.92,32.82]
[1760000673826,22.40387619,220.95,220.92,32.82]
[1760000674042,6.56318827,220.93,220.92,32.82]
[1760000674350,11.08950882,220.93,220.92,32.82]
[1760000675758,4.52632055,220.93,220.92,53.49999999]
[1760000676546,15.84068792,220.95,220.92,53.49999999]
[1760000676744,15.84068792,220.95,220.93,0.68]
[1760000676955,4.52591083,220.95,220.94,52.79999999]
[1760000677840,4.52591083,220.95,220.94,32.8]
[1760000678230,16.49068792,220.95,220.94,32.8]
[1760000678425,15.84068792,220.95,220.94,32.8]
[1760000678647,22.40387619,220.95,220.94,32.8]
[1760000680549,22.40387619,220.95,220.93,32.76]
[1760000681085,15.84068792,220.95,220.93,32.76]
[1760000681244,15.84068792,220.95,220.93,33.44]
[1760000681442,15.84068792,220.95,220.93,32.76]
[1760000681752,6.56318827,220.94,220.93,32.76]
[1760000681951,15.84068792,220.95,220.93,52.75999999]
[1760000682858,4.52571199,220.96,220.94,0.68]
[1760000683047,4.52571199,220.96,220.95,53.41999999]
[1760000683555,15.83662083,221.01,220.97,19.99999999]
[1760000683754,6.56318827,221.0,220.98,52.73999999]
[1760000683953,6.56318827,221.0,220.99,32.74]
[1760000684259,6.56318827,221.0,220.98,32.74]
[1760000684445,6.56318827,220.99,220.98,32.74]
[1760000684633,11.0882799,220.99,220.98,32.74]
[1760000685044,23.08100898,220.99,220.92,52.73999999]
[1760000685258,6.56318827,220.93,220.92,52.73999999]
[1760000685765,16.51782071,220.99,220.92,52.73999999]
[1760000685962,6.56318827,220.93,220.92,52.73999999]
[1760000686763,6.56318827,220.95,220.94,19.99999999]
[1760000687064,11.08909543,220.96,220.94,20.67999999]
[1760000687264,4.5254692,220.98,220.95,0.68]
[1760000687444,4.5254692,220.98,220.86,31.67647521]
[1760000687445,4.5254692,220.98,220.96,53.39999999]
[1760000687648,4.52511002,220.99,220.98,19.99999999]
[1760000687868,4.52511002,220.99,220.98,52.73999999]
[1760000688763,11.08829829,220.99,220.98,52.73999999]
[1760000688942,22.40102737,220.99,220.96,19.99999999]
[1760000689143,6.56318827,220.97,220.96,19.99999999]
[1760000689540,6.56318827,220.97,220.95,32.72]
[1760000689847,15.8378391,220.99,220.95,32.72]
[1760000690046,6.56318827,220.96,220.95,32.72]
[1760000690848,11.08889428,220.96,220.94,19.99999999]
[1760000691268,22.4031593,220.96,220.93,32.7]
[1760000691577,6.56318827,220.94,220.93,32.7]
[1760000691754,6.56318827,220.94,220.92,19.99999999]
[1760000692671,4.52632055,220.93,220.92,19.99999999]
[1760000692877,16.52212193,220.93,220.86,19.99999999]
[1760000693082,6.56318827,220.89,220.86,53.37999999]
[1760000693390,15.84212193,220.93,220.88,19.99999999]
[1760000693549,6.56318827,220.91,220.89,0.68]
[1760000694450,4.52632055,220.93,220.91,19.99999999]
[1760000694753,4.52611568,220.94,220.92,33.36]
[1760000694958,4.52611568,220.94,220.93,20.67999999]
[1760000695855,15.84031536,220.96,220.93,20.67999999]
[1760000696371,4.52570601,220.96,220.94,33.37]
[1760000696575,4.5252964,220.98,220.95,20.68999999]
[1760000696775,4.5252964,220.98,220.97,19.99999999]
[1760000697850,4.52509163,220.99,220.97,19.99999999]
[1760000698552,6.56318827,220.98,220.97,19.99999999]
[1760000698949,7.27318827,220.98,220.95,19.99999999]
[1760000699167,6.56318827,220.96,220.95,19.99999999]
[1760000699375,15.83782071,220.99,220.95,19.99999999]
[1760000699675,6.56318827,221.0,220.99,19.99999999]
[1760000699979,11.08807514,221.0,220.99,19.99999999]
[1760000700477,22.40029233,221.0,220.99,19.99999999]
[1760000700864,20.8,221.03,220.99,19.99999999]
[1760000700865,32.11095312,221.03,220.99,19.99999999]
[1760000701088,14.56534206,221.06,221.03,19.99999999]
[1760000701283,4.52341887,221.08,221.07,19.99999999]
[1760000701576,2795.40398484,221.1,221.09,19.99999999]